bitfinex-derivatives/quotes_BTCF0:USTF0_20240824
["timestamp","ask_amount","ask_price","bid_price","bid_amount"]
[1724471188542,0.3688,63817.0,63815.0,0.078295]
[1724471191550,0.3688,63817.0,63815.0,0.08449074]
[1724471193747,0.008,63817.0,63816.0,0.078294]
[1724471196354,0.3608,63828.0,63816.0,0.00607262]
[1724471196558,0.3608,63834.0,63833.0,0.078273]
[1724471197058,0.3608,63834.0,63833.0,0.298273]
[1724471198357,0.0002351,63840.0,63834.0,0.078272]
[1724471198759,0.0002351,63840.0,63835.0,0.078271]
[1724471199055,0.0002351,63840.0,63831.0,0.15649325]
[1724471199056,0.3608,63836.0,63831.0,0.15649325]
[1724471199257,0.3608,63836.0,63828.0,0.408]
[1724471199650,0.3608,63836.0,63828.0,0.486279]
[1724471199856,0.078271,63835.0,63828.0,0.486279]
[1724471200059,4e-05,63829.0,63828.0,0.486279]
[1724471200659,4e-05,63829.0,63828.0,0.13164177]
[1724471201357,0.36084,63829.0,63828.0,0.001]
[1724471201562,1.309118,63829.0,63828.0,0.001]
[1724471203664,0.07828,63828.0,63827.0,0.0002351]
[1724471204564,0.07832,63828.0,63827.0,0.0002351]
[1724471204958,0.04668194,63835.0,63827.0,0.5485161]
[1724471205255,0.0002351,63840.0,63838.0,0.078267]
[1724471205451,0.0002351,63840.0,63838.0,0.15624092]
[1724471205655,0.0002351,63840.0,63838.0,0.078267]
[1724471210071,0.3608,63846.0,63838.0,0.078267]
[1724471210755,0.439058,63846.0,63838.0,0.078267]
[1724471211157,0.439058,63846.0,63838.0,0.08451704]
[1724471211665,0.078259,63845.0,63838.0,0.08451704]
[1724471212062,0.3608,63844.0,63838.0,0.08451704]
[1724471212563,0.43906,63844.0,63838.0,0.08451704]
[1724471216274,0.078261,63843.0,63838.0,0.08451704]
[1724471220675,0.078262,63842.0,63838.0,0.08451704]
[1724471220972,0.3608,63839.0,63831.0,0.07797392]
[1724471221172,0.078276,63831.0,63828.0,0.0971]
[1724471221368,0.078276,63831.0,63828.0,0.175379]
[1724471221974,4e-05,63829.0,63828.0,0.175379]
[1724471222168,4e-05,63829.0,63828.0,0.18168272]
[1724471222375,0.078276,63831.0,63828.0,0.18168272]
[1724471222376,0.076316,63831.0,63828.0,0.18168272]
[1724471223077,0.3608,63832.0,63831.0,0.078276]
[1724471224684,0.3608,63832.0,63831.0,0.548276]
[1724471224685,0.3618,63832.0,63831.0,0.548276]
[1724471225069,0.3618,63832.0,63831.0,0.66752012]
[1724471225267,0.30699609,63832.0,63831.0,0.66752012]
[1724471225465,0.30699609,63832.0,63831.0,0.19752012]
[1724471226773,0.001,63832.0,63831.0,0.19752012]
[1724471227172,0.00015489,63835.0,63834.0,0.078272]
[1724471227374,0.00015489,63835.0,63834.0,0.41751612]
[1724471228468,0.00215489,63835.0,63834.0,0.41751612]
[1724471231578,0.00215489,63835.0,63834.0,0.298272]
[1724471231785,0.00215489,63835.0,63834.0,0.41750731]
[1724471234283,0.00215489,63835.0,63834.0,0.51128006]
[1724471234485,0.00215489,63835.0,63834.0,0.39204475]
[1724471234786,0.00215489,63835.0,63834.0,0.56263787]
[1724471235883,0.00215489,63835.0,63834.0,0.41750772]
[1724471236078,0.00215489,63835.0,63834.0,0.56263787]
[1724471237777,0.00215489,63835.0,63834.0,0.56263701]
[1724471241684,0.00215489,63835.0,63834.0,0.56263622]
[1724471243683,0.00215489,63835.0,63834.0,0.41750698]
[1724471246301,0.00215489,63835.0,63834.0,0.51133826]
[1724471246492,0.00215489,63835.0,63834.0,0.51133941]
[1724471246793,0.00215489,63835.0,63834.0,0.41750813]
[1724471247199,0.00215489,63835.0,63834.0,0.56263924]
[1724471247992,0.00215489,63835.0,63834.0,0.41750813]
[1724471249191,0.00215489,63835.0,63834.0,0.56263939]
[1724471251488,0.00215489,63835.0,63834.0,0.5626368]
[1724471255084,0.04127703,63839.0,63834.0,0.5626368]
[1724471255291,0.40748194,63842.0,63835.0,0.2643648]
[1724471255292,0.40828194,63842.0,63835.0,0.2643648]
[1724471255491,0.04668194,63842.0,63839.0,0.45473095]
[1724471255794,0.04668194,63842.0,63840.0,0.11923524]
[1724471255993,0.04668194,63842.0,63841.0,0.11923524]
[1724471257992,0.04668194,63842.0,63841.0,0.12023524]
[1724471258800,0.04668194,63842.0,63841.0,0.12123524]
[1724471260395,0.078262,63843.0,63841.0,0.12123524]
[1724471260589,0.078262,63843.0,63842.0,0.11923524]
[1724471261392,0.078262,63843.0,63841.0,0.001]
[1724471261590,0.078262,63843.0,63842.0,0.11923433]
[1724471261998,0.078262,63843.0,63842.0,0.12023433]
[1724471262502,0.078262,63843.0,63842.0,0.11923433]
[1724471263091,0.078262,63843.0,63842.0,0.12023433]
[1724471263295,0.078262,63843.0,63842.0,0.12123433]
[1724471264298,0.12507199,63843.0,63842.0,0.12123433]
[1724471266399,0.12507199,63843.0,63842.0,0.1212331]
[1724471267906,0.078262,63843.0,63842.0,0.1212331]
[1724471268107,0.12506868,63843.0,63842.0,0.1212331]
[1724471268895,1.026444,63843.0,63842.0,0.1212331]
[1724471269206,1.382044,63843.0,63842.0,0.00096]
[1724471269397,1.45982669,63843.0,63842.0,0.00096]
[1724471269603,1.45982669,63843.0,63837.0,0.06262019]
[1724471269604,0.156534,63838.0,63837.0,0.06262019]
[1724471269906,0.156534,63838.0,63827.0,0.09416605]
[1724471269907,0.15654,63836.0,63835.0,0.06262019]
[1724471270102,0.02537433,63836.0,63829.0,1.9e-07]
[1724471270308,0.3608,63830.0,63827.0,0.0002351]
[1724471270502,0.3608,63828.0,63827.0,0.0002351]
[1724471270895,1.2308,63828.0,63827.0,0.0002351]
[1724471271102,1.23084,63828.0,63827.0,0.0002351]
[1724471271303,1.27651035,63828.0,63827.0,0.0002351]
[1724471271506,1.35479035,63828.0,63827.0,0.0002351]
[1724471271703,1.30812,63828.0,63827.0,0.0002351]
[1724471271909,1.30812,63828.0,63827.0,0.0042351]
[1724471272312,0.90812,63828.0,63827.0,0.0042351]
[1724471272509,1.30812,63828.0,63827.0,0.0042351]
[1724471272702,1.30812,63828.0,63827.0,0.0082351]
[1724471272904,1.30912,63828.0,63827.0,0.0052351]
[1724471273200,1.31519611,63828.0,63827.0,0.0052351]
[1724471273709,1.31619611,63828.0,63827.0,0.0022351]
[1724471279403,0.44619611,63828.0,63827.0,0.0022351]
[1724471281302,1.39447611,63828.0,63827.0,0.0022351]
[1724471286410,0.078293,63817.0,63816.0,0.00028]
[1724471286614,0.878186,63817.0,63816.0,0.00028]
[1724471286912,1.748266,63817.0,63816.0,0.00028]
[1724471287116,1.790806,63817.0,63816.0,0.00028]
[1724471287708,1.790806,63817.0,63816.0,0.00328]
[1724471288320,1.790806,63817.0,63816.0,0.00728]
[1724471290416,1.6760822,63817.0,63816.0,0.00728]
[1724471291811,0.8060022,63817.0,63816.0,0.00728]
[1724471293416,0.8842952,63817.0,63816.0,0.00728]
[1724471293617,2.09933855,63817.0,63816.0,1e-06]
[1724471293816,0.156602,63811.0,63810.0,0.0002351]
[1724471294012,0.737402,63811.0,63810.0,0.0002351]
[1724471294207,0.95577208,63811.0,63810.0,0.0002351]
[1724471294515,0.439101,63811.0,63810.0,0.0002351]
[1724471295306,0.439141,63811.0,63810.0,0.0002351]
[1724471295511,0.439141,63811.0,63810.0,0.0012351]
[1724471295712,0.439141,63811.0,63810.0,0.0022351]
[1724471298828,0.078341,63811.0,63810.0,0.0022351]
[1724471299026,0.439141,63811.0,63810.0,0.0022351]
[1724471302317,0.48565208,63811.0,63810.0,0.0022351]
[1724471304411,0.439141,63811.0,63810.0,0.0022351]
[1724471305525,0.4452189,63811.0,63810.0,0.04908044]
[1724471305727,0.439141,63811.0,63810.0,0.0022351]
[1724471306312,0.517442,63811.0,63810.0,0.0022351]
[1724471306820,0.56395308,63811.0,63810.0,0.0022351]
[1724471307025,0.517442,63811.0,63810.0,0.0022351]
[1724471307624,0.439141,63811.0,63810.0,0.0022351]
[1724471307920,0.48576628,63811.0,63810.0,0.0022351]
[1724471308321,0.4857696,63811.0,63810.0,0.0022351]
[1724471308627,0.439141,63811.0,63810.0,0.0022351]
[1724471311922,0.439141,63811.0,63810.0,0.00845054]
[1724471312126,0.078295,63816.0,63810.0,0.00845054]
[1724471312321,0.078295,63816.0,63815.0,0.04687365]
[1724471312627,0.04663519,63818.0,63816.0,0.078295]
[1724471312923,0.078289,63821.0,63816.0,0.078295]
[1724471313318,0.078289,63821.0,63814.0,0.3608]
[1724471313319,0.04666733,63824.0,63815.0,0.22]
[1724471313519,0.04666733,63824.0,63814.0,0.43907092]
[1724471313520,0.078275,63832.0,63825.0,0.078284]
[1724471313823,0.078276,63831.0,63826.0,0.0937]
[1724471314130,0.078276,63831.0,63827.0,0.19738628]
[1724471314431,0.078276,63831.0,63826.0,0.0937]
[1724471314616,0.078276,63831.0,63826.0,0.25010884]
[1724471314822,0.078276,63831.0,63827.0,0.19737973]
[1724471315020,0.3608,63833.0,63828.0,0.19737961]
[1724471315221,0.3608,63833.0,63827.0,0.078281]
[1724471315222,0.01,63831.0,63829.0,0.07812684]
[1724471315423,0.01,63831.0,63827.0,0.15640784]
[1724471316237,0.01,63831.0,63827.0,0.078281]
[1724471316731,0.01,63831.0,63828.0,0.048]
[1724471317518,0.005,63831.0,63828.0,0.049]
[1724471317924,0.005,63831.0,63828.0,0.05]
[1724471318125,0.01,63831.0,63828.0,0.05]
[1724471320437,0.01,63831.0,63830.0,0.078277]
[1724471321431,0.01,63831.0,63830.0,0.12497547]
[1724471321834,0.01,63831.0,63830.0,0.12597547]
[1724471322636,0.01,63831.0,63830.0,0.12697547]
[1724471323429,0.01,63831.0,63830.0,0.080277]
[1724471325030,0.01,63831.0,63830.0,0.12697547]
[1724471325539,0.01,63831.0,63830.0,0.080277]
[1724471325928,0.01,63831.0,63830.0,0.12697547]
[1724471326132,0.01,63831.0,63830.0,0.080277]
[1724471326335,0.01,63831.0,63830.0,0.12695062]
[1724471328135,0.01,63831.0,63830.0,0.080277]
[1724471328336,0.01,63831.0,63830.0,0.12694202]
[1724471328533,0.078267,63839.0,63830.0,0.222]
[1724471328736,0.078267,63839.0,63836.0,0.22]
[1724471329838,0.005,63839.0,63837.0,0.078268]
[1724471331336,0.005,63839.0,63837.0,0.079268]
[1724471332134,0.078265,63841.0,63837.0,0.080268]
[1724471332335,0.078265,63841.0,63838.0,0.0952]
[1724471333342,0.3608,63843.0,63838.0,0.0952]
[1724471333542,0.3608,63843.0,63839.0,0.078266]
[1724471334045,0.078263,63842.0,63839.0,0.078266]
[1724471335047,0.078263,63842.0,63839.0,0.079266]
[1724471335231,0.078263,63842.0,63839.0,0.12592873]
[1724471335440,0.078264,63841.0,63839.0,0.12592873]
[1724471336641,0.078264,63841.0,63839.0,0.12692873]
[1724471336946,0.078264,63841.0,63839.0,0.079266]
[1724471337134,0.078264,63841.0,63839.0,0.12692873]
[1724471337332,0.078264,63841.0,63840.0,0.04666273]
[1724471337834,0.001,63842.0,63839.0,0.04866273]
[1724471337835,0.078265,63840.0,63839.0,0.04866273]
[1724471338139,0.078265,63840.0,63839.0,0.04766273]
[1724471338347,0.078265,63840.0,63839.0,0.002]
[1724471338637,0.078305,63840.0,63839.0,0.002]
[1724471339540,0.079305,63840.0,63839.0,0.06420795]
[1724471339745,0.079305,63840.0,63839.0,0.06320795]
[1724471339942,0.079305,63840.0,63839.0,0.001]
[1724471340344,0.079305,63840.0,63839.0,0.002]
[1724471340548,0.079305,63840.0,63839.0,0.06436647]
[1724471341337,0.079305,63840.0,63839.0,0.002]
[1724471343444,0.079305,63840.0,63839.0,0.12123424]
[1724471344048,0.00104,63840.0,63839.0,0.19950024]
[1724471344743,0.00104,63840.0,63839.0,0.41950024]
[1724471345946,0.00104,63840.0,63839.0,0.51243119]
[1724471345947,4e-05,63840.0,63839.0,0.51243119]
[1724471346151,0.00104,63840.0,63839.0,0.51243119]
[1724471346353,0.00104,63840.0,63839.0,0.51343119]
[1724471346547,0.00104,63840.0,63839.0,0.41950024]
[1724471349847,0.00104,63840.0,63839.0,0.78030024]
[1724471350053,0.00104,63840.0,63839.0,1.25022024]
[1724471350261,0.00104,63840.0,63839.0,1.29932024]
[1724471350557,0.00104,63840.0,63839.0,0.82940024]
[1724471352948,0.00104,63840.0,63839.0,0.46860024]
[1724471353155,0.00104,63840.0,63839.0,0.92333119]
[1724471353846,0.00104,63840.0,63839.0,0.82940024]
[1724471355248,0.00104,63840.0,63839.0,0.84896945]
[1724471356454,0.00104,63840.0,63839.0,0.82940024]
[1724471356653,0.00104,63840.0,63839.0,0.84896945]
[1724471358148,0.00104,63840.0,63839.0,0.48816945]
[1724471358351,0.00104,63840.0,63839.0,0.84896945]
[1724471358550,0.07826,63845.0,63839.0,0.48816945]
[1724471358755,0.07826,63845.0,63841.0,0.09386682]
[1724471359046,0.07826,63845.0,63842.0,0.13880345]
[1724471359256,0.07826,63845.0,63843.0,0.13879839]
[1724471359556,0.07826,63845.0,63839.0,0.711446]
[1724471359557,0.07826,63845.0,63844.0,0.13879839]
[1724471359751,0.07826,63845.0,63844.0,0.13879842]
[1724471359951,0.07826,63845.0,63844.0,0.13879673]
[1724471360854,0.07826,63845.0,63844.0,0.13979673]
[1724471362050,0.07826,63845.0,63844.0,0.14079673]
[1724471365062,0.07826,63845.0,63844.0,0.14706069]
[1724471366249,0.07826,63845.0,63844.0,0.14706066]
[1724471366660,0.07826,63845.0,63844.0,0.16662987]
[1724471366859,0.07826,63845.0,63844.0,0.14706066]
[1724471369158,0.07826,63845.0,63844.0,0.14705927]
[1724471370453,0.07826,63845.0,63844.0,0.14705833]
[1724471371161,0.07826,63845.0,63844.0,0.24092515]
[1724471371356,0.07826,63845.0,63844.0,0.14705833]
[1724471372166,0.07826,63845.0,63844.0,0.24094496]
[1724471372755,0.07826,63845.0,63844.0,0.24094632]
[1724471372961,0.07826,63845.0,63844.0,0.14705814]
[1724471373667,0.3608,63849.0,63844.0,0.14705814]
[1724471373881,0.0528331,63851.0,63846.0,0.09388809]
[1724471374061,0.078256,63848.0,63847.0,0.13879418]
[1724471374265,0.078256,63848.0,63847.0,0.23268227]
[1724471374858,0.078256,63848.0,63847.0,0.21311325]
[1724471375064,0.078256,63848.0,63847.0,0.23268089]
[1724471375257,0.078256,63848.0,63847.0,0.23368089]
[1724471376270,0.078256,63848.0,63847.0,0.1387928]
[1724471376461,0.078256,63848.0,63847.0,0.1397928]
[1724471376967,0.078256,63848.0,63847.0,0.1407928]
[1724471382967,0.078256,63848.0,63847.0,0.12122516]
[1724471383173,0.078256,63848.0,63847.0,0.14079296]
[1724471383863,0.078256,63848.0,63847.0,0.14078914]
[1724471386567,0.078256,63848.0,63847.0,0.14079019]
[1724471386964,0.078256,63848.0,63847.0,0.14078896]
[1724471387774,0.078256,63848.0,63847.0,0.14078867]
[1724471388774,0.078256,63848.0,63847.0,0.14078836]
[1724471390069,0.078256,63848.0,63847.0,0.12122074]
[1724471390371,0.078256,63848.0,63847.0,0.14078901]
[1724471393164,0.078256,63848.0,63847.0,0.12122074]
[1724471393369,0.078256,63848.0,63847.0,0.1407888]
[1724471396574,0.078256,63848.0,63847.0,0.12122074]
[1724471396772,0.078256,63848.0,63847.0,0.14078884]
[1724471396976,0.078256,63848.0,63847.0,0.12122074]
[1724471397280,0.078256,63848.0,63847.0,0.14078884]
[1724471398176,0.078256,63848.0,63847.0,0.23467693]
[1724471398574,0.078256,63848.0,63847.0,0.14078884]
[1724471398771,0.078256,63848.0,63847.0,0.28589737]
[1724471399781,0.078256,63848.0,63847.0,0.12121922]
[1724471399976,0.078256,63848.0,63847.0,0.14078731]
[1724471400779,0.156512,63848.0,63847.0,0.13074731]
[1724471400980,0.14053887,63848.0,63845.0,0.07825558]
[1724471401284,0.07826,63844.0,63843.0,0.07825558]
[1724471401482,0.07826,63844.0,63843.0,0.09782687]
[1724471401972,0.0783,63844.0,63843.0,0.07825558]
[1724471402179,0.078262,63843.0,63842.0,0.07825558]
[1724471402570,0.078263,63842.0,63841.0,0.07825558]
[1724471403086,0.078263,63842.0,63841.0,0.06257325]
[1724471403087,1.27649896,63842.0,63841.0,0.06257325]
[1724471403286,0.078266,63839.0,63838.0,0.06257325]
[1724471403672,0.156536,63838.0,63837.0,0.0002351]
[1724471403888,0.56307452,63838.0,63837.0,0.0002351]
[1724471404075,1.43303303,63838.0,63837.0,0.0002351]
[1724471404277,1.43303303,63838.0,63829.0,0.04688801]
[1724471404278,0.22,63837.0,63829.0,0.04688801]
[1724471404483,0.3608,63830.0,63828.0,0.04688801]
[1724471404778,0.07728,63828.0,63826.0,0.04688801]
[1724471404980,0.078282,63826.0,63825.0,0.04688801]
[1724471405177,0.078282,63826.0,63824.0,8e-05]
[1724471405586,0.077282,63826.0,63824.0,8e-05]
[1724471405978,4e-05,63825.0,63824.0,8e-05]
[1724471408584,0.00304,63825.0,63824.0,8e-05]
[1724471409083,0.00704,63825.0,63824.0,8e-05]
[1724471411593,0.085324,63825.0,63824.0,8e-05]
[1724471413180,0.163608,63825.0,63824.0,8e-05]
[1724471413582,0.15658,63820.0,63819.0,1e-07]
[1724471413784,0.59567,63820.0,63819.0,1e-07]
[1724471414093,1.46575,63820.0,63819.0,1e-07]
[1724471414795,1.46575,63820.0,63819.0,0.0020001]
[1724471415181,1.46575,63820.0,63819.0,0.0030001]
[1724471416484,1.46575,63820.0,63819.0,1e-07]
[1724471416884,0.078319,63796.0,63795.0,0.04688801]
[1724471417086,0.078319,63796.0,63792.0,0.0489]
[1724471417087,0.34511072,63796.0,63793.0,0.13968801]
[1724471417287,0.34511072,63796.0,63793.0,0.0928]
[1724471417794,0.077322,63794.0,63793.0,0.0928]
[1724471417992,0.077322,63794.0,63790.0,0.04701525]
[1724471418196,0.078323,63793.0,63791.0,0.047]
[1724471418492,0.064323,63793.0,63791.0,0.047]
[1724471418688,0.050323,63793.0,63791.0,0.047]
[1724471419286,0.036323,63793.0,63791.0,0.047]
[1724471420889,0.037323,63793.0,63791.0,0.047]
[1724471421288,0.037323,63793.0,63791.0,0.048]
[1724471421493,0.038323,63793.0,63791.0,0.048]
[1724471421688,4e-05,63792.0,63791.0,0.048]
[1724471422898,0.00104,63792.0,63791.0,0.048]
[1724471423997,0.00204,63792.0,63791.0,0.048]
[1724471425598,0.00204,63792.0,63791.0,0.09488801]
[1724471426602,0.00204,63792.0,63791.0,0.048]
[1724471426993,0.0002351,63801.0,63800.0,0.078314]
[1724471427195,0.3608,63817.0,63800.0,0.3608]
[1724471427196,0.3608,63810.0,63800.0,0.3608]
[1724471427398,0.3608,63810.0,63806.0,0.078307]
[1724471427591,0.078296,63815.0,63807.0,0.0456]
[1724471427791,0.3608,63817.0,63809.0,0.3608]
[1724471427992,0.3608,63817.0,63815.0,0.078295]
[1724471428198,0.3608,63823.0,63820.0,0.078289]
[1724471428199,0.0002351,63822.0,63820.0,0.078289]
[1724471428494,0.0002351,63822.0,63821.0,0.0986]
[1724471429893,0.0142351,63822.0,63821.0,0.0986]
[1724471430295,0.0282351,63822.0,63821.0,0.0986]
[1724471430696,0.0282351,63822.0,63821.0,0.10471123]
[1724471430900,0.0252351,63822.0,63821.0,0.10471123]
[1724471431101,0.0252351,63822.0,63821.0,0.15331123]
[1724471431493,0.0212351,63822.0,63821.0,0.15331123]
[1724471431696,0.0212351,63822.0,63821.0,0.1472]
[1724471432804,0.0212351,63822.0,63821.0,0.0985]
[1724471433201,0.0212351,63822.0,63809.0,0.07825558]
[1724471433202,0.078298,63813.0,63809.0,0.07825558]
[1724471433395,0.3608,63812.0,63811.0,0.0494]
[1724471433799,0.3608,63812.0,63811.0,0.0961521]
[1724471434102,0.3608,63812.0,63811.0,0.0494]
[1724471434809,0.3618,63812.0,63811.0,0.0494]
[1724471435501,0.3618,63812.0,63811.0,0.0504]
[1724471436093,0.001,63812.0,63811.0,0.0504]
[1724471436310,0.002,63812.0,63811.0,0.0494]
[1724471436505,0.004,63812.0,63811.0,0.0494]
[1724471437209,0.006,63812.0,63811.0,0.0494]
[1724471437800,0.007,63812.0,63811.0,0.4102]
[1724471438003,0.009,63812.0,63811.0,0.4102]
[1724471438699,0.006,63812.0,63811.0,0.4102]
[1724471438905,0.01,63812.0,63811.0,0.4102]
[1724471440012,0.01,63812.0,63811.0,0.0494]
[1724471444109,0.01,63812.0,63811.0,0.07387377]
[1724471444613,0.01,63812.0,63811.0,0.0494]
[1724471444915,0.01,63812.0,63811.0,0.07387377]
[1724471445221,0.01,63812.0,63811.0,0.2714523]
[1724471445515,0.01,63812.0,63811.0,0.24697853]
[1724471445815,0.0002351,63822.0,63821.0,0.078288]
[1724471446114,0.0002351,63822.0,63821.0,0.298288]
[1724471446303,0.0002351,63822.0,63821.0,1.168368]
[1724471446508,0.3608,63832.0,63829.0,0.078278]
[1724471446702,0.3608,63832.0,63830.0,0.0934]
[1724471448612,0.439075,63832.0,63830.0,0.0934]
[1724471448808,0.453075,63832.0,63830.0,0.0944]
[1724471449003,0.467075,63832.0,63830.0,0.0944]
[1724471451918,0.106275,63832.0,63830.0,0.0944]
[1724471453718,0.106275,63832.0,63830.0,0.10057703]
[1724471454315,0.106275,63832.0,63830.0,0.00717703]
[1724471454517,0.078276,63831.0,63830.0,0.00717703]
[1724471455214,0.078276,63831.0,63830.0,0.05395065]
[1724471456016,0.078276,63831.0,63830.0,0.00717703]
[1724471456321,0.092276,63831.0,63830.0,0.05395065]
[1724471456617,0.078282,63826.0,63825.0,0.04707446]
[1724471456919,0.078282,63826.0,63825.0,0.0002351]
[1724471457312,0.078322,63826.0,63825.0,0.0002351]
[1724471458112,0.078322,63826.0,63825.0,0.04707446]
[1724471458314,0.092322,63826.0,63825.0,0.04807446]
[1724471459115,0.106322,63826.0,63825.0,0.04807446]
[1724471460925,0.078292,63818.0,63817.0,0.07797675]
[1724471461113,0.078295,63816.0,63815.0,0.07797675]
[1724471461422,0.3608,63821.0,63813.0,0.07797675]
[1724471461423,0.078297,63814.0,63813.0,0.07797675]
[1724471461619,0.078297,63814.0,63813.0,0.19725869]
[1724471461917,0.078297,63814.0,63813.0,0.11928194]
[1724471462118,0.03917686,63814.0,63813.0,0.11928194]
[1724471462912,0.04617686,63814.0,63813.0,0.11928194]
[1724471463116,0.04617686,63814.0,63813.0,0.19757994]
[1724471463117,0.00704,63814.0,63813.0,0.19757994]
[1724471463612,0.00604,63814.0,63813.0,0.19757994]
[1724471464220,0.01104,63814.0,63813.0,0.29247418]
[1724471464421,0.00346106,63814.0,63813.0,0.34375477]
[1724471465812,0.0002351,63820.0,63819.0,0.078291]
[1724471466015,0.0002351,63820.0,63819.0,0.55837294]
[1724471466220,0.0002351,63820.0,63819.0,0.65213755]
[1724471467012,0.0252351,63820.0,63819.0,0.65313755]
[1724471467218,0.04670153,63834.0,63828.0,0.078279]
[1724471467526,0.0489,63839.0,63832.0,0.07814072]
[1724471467725,0.078269,63837.0,63836.0,0.06249107]
[1724471468125,0.078269,63837.0,63833.0,0.07814072]
[1724471468426,0.078269,63837.0,63834.0,0.07814072]
[1724471468620,0.078269,63837.0,63833.0,0.07814072]
[1724471469422,0.006,63834.0,63833.0,0.07814072]
[1724471469830,0.006,63834.0,63832.0,0.07814072]
[1724471470123,0.07827,63836.0,63832.0,0.07814072]
[1724471470320,0.07827,63836.0,63833.0,0.001]
[1724471471517,0.07827,63836.0,63832.0,0.07814072]
[1724471471827,0.007,63834.0,63832.0,0.07914072]
[1724471472421,0.017,63834.0,63832.0,0.08014072]
[1724471473730,0.01,63834.0,63832.0,0.07914072]
[1724471473921,0.01,63834.0,63833.0,0.001]
[1724471474629,0.015,63834.0,63833.0,0.15641472]
[1724471474923,0.015,63834.0,63833.0,0.21708851]
[1724471475123,0.078259,63845.0,63833.0,0.13881451]
[1724471475321,0.078259,63845.0,63843.0,0.06245094]
[1724471475527,0.3608,63847.0,63844.0,0.08202053]
[1724471475829,0.3608,63847.0,63843.0,0.06245094]
[1724471476134,0.439057,63847.0,63844.0,0.01956932]
[1724471476332,0.078257,63847.0,63843.0,0.10985094]
[1724471476630,0.00634392,63849.0,63843.0,0.11085094]
[1724471476631,0.009,63845.0,63843.0,0.11085094]
[1724471476827,0.009,63845.0,63844.0,0.0195694]
[1724471477027,0.009,63845.0,63843.0,0.05450834]
[1724471477222,4e-05,63844.0,63843.0,0.05450834]
[1724471477418,4e-05,63844.0,63843.0,0.18136934]
[1724471478029,4e-05,63844.0,63843.0,0.20093746]
[1724471478223,4e-05,63844.0,63843.0,0.20193746]
[1724471478423,4e-05,63844.0,63843.0,0.20193738]
[1724471478630,4e-05,63844.0,63843.0,0.18236934]
[1724471478936,0.3608,63850.0,63843.0,0.52139025]
[1724471479126,0.3608,63850.0,63848.0,0.06235911]
[1724471479732,0.3608,63850.0,63847.0,0.06235911]
[1724471479932,0.3608,63850.0,63847.0,0.14061511]
[1724471480521,0.3608,63850.0,63847.0,0.078256]
[1724471481025,0.3608,63850.0,63847.0,0.079256]
[1724471481428,0.3608,63850.0,63849.0,0.046722]
[1724471481825,0.3608,63850.0,63848.0,0.001]
[1724471482031,0.3608,63850.0,63847.0,0.079256]
[1724471482223,0.3608,63850.0,63847.0,0.080256]
[1724471482624,0.3608,63850.0,63849.0,0.04671108]
[1724471482831,0.078252,63851.0,63849.0,0.04771108]
[1724471483634,0.001,63850.0,63849.0,0.04871108]
[1724471484136,0.001,63850.0,63849.0,0.002]
[1724471484331,0.078252,63851.0,63849.0,0.001]
[1724471484535,0.078252,63851.0,63849.0,0.002]
[1724471484536,0.079252,63851.0,63849.0,0.002]
[1724471484937,0.078253,63850.0,63849.0,0.002]
[1724471485125,0.078253,63850.0,63849.0,0.001]
[1724471485328,0.3608,63853.0,63849.0,0.001]
[1724471485329,0.04670153,63866.0,63850.0,0.46984]
[1724471485529,0.04670153,63872.0,63860.0,0.5808]
[1724471485831,0.0494,63873.0,63860.0,0.5808]
[1724471485832,0.3608,63871.0,63861.0,0.04669176]
[1724471486031,0.3608,63871.0,63862.0,0.0466765]
[1724471486032,0.3608,63865.0,63862.0,0.0466765]
[1724471486232,0.078239,63861.0,63860.0,0.00023491]
[1724471487025,0.078279,63861.0,63860.0,0.00023491]
[1724471487734,0.080279,63861.0,63860.0,0.00123491]
[1724471488331,0.00204,63861.0,63860.0,0.00123491]
[1724471488835,0.00204,63861.0,63860.0,0.07236746]
[1724471489032,0.00204,63861.0,63860.0,0.00123491]
[1724471489235,0.00204,63861.0,63860.0,0.02669081]
[1724471489536,0.00204,63861.0,63860.0,0.07335304]
[1724471490733,0.00204,63861.0,63860.0,0.0329673]
[1724471491239,0.00204,63861.0,63860.0,0.15787053]
[1724471491541,0.00204,63861.0,63860.0,0.1112083]
[1724471492438,0.00204,63861.0,63860.0,0.0867524]
[1724471492647,0.00204,63861.0,63860.0,0.11120806]
[1724471492939,0.00204,63861.0,63860.0,0.14911151]
[1724471493139,0.00204,63861.0,63860.0,0.17256717]
[1724471493343,0.00104,63861.0,63860.0,0.17156717]
[1724471493734,0.00104,63861.0,63860.0,0.17142904]
[1724471493949,0.00104,63861.0,63860.0,0.10920806]
[1724471494438,0.00104,63861.0,63860.0,0.10920779]
[1724471495041,0.00104,63861.0,63860.0,0.0847524]
[1724471495338,0.3608,63866.0,63863.0,0.078236]
[1724471495540,0.078229,63870.0,63865.0,0.04668515]
[1724471495938,0.078229,63870.0,63866.0,0.04668515]
[1724471496331,0.078229,63870.0,63867.0,0.04668515]
[1724471496539,0.078229,63870.0,63868.0,0.04668515]
[1724471497544,0.001,63870.0,63868.0,0.12491515]
[1724471497851,0.001,63870.0,63869.0,0.04668515]
[1724471498546,0.001,63870.0,63869.0,0.07823]
[1724471498752,0.001,63870.0,63869.0,0.12492477]
[1724471499040,0.001,63870.0,63869.0,0.07823]
[1724471499840,0.439824,63874.0,63869.0,0.07823]
[1724471500142,0.439824,63874.0,63872.0,0.04669458]
[1724471500349,0.3616,63874.0,63870.0,0.078228]
[1724471500647,0.127624,63873.0,63872.0,0.04669876]
[1724471500849,0.078226,63872.0,63869.0,0.06423023]
[1724471501540,0.078226,63872.0,63870.0,0.00096]
[1724471501742,0.078226,63872.0,63870.0,0.06319023]
[1724471501944,0.078226,63872.0,63870.0,0.00096]
[1724471502148,0.078226,63872.0,63871.0,0.06223023]
[1724471502747,0.078226,63872.0,63870.0,0.00096]
[1724471502748,0.078226,63872.0,63870.0,0.00196]
[1724471503141,0.078226,63872.0,63870.0,0.001]
[1724471503345,0.078226,63872.0,63871.0,0.001]